Workbook

Sheet Intro
B3: KSU-Machinery Costs
B5: An Excel spreadsheet to assist producers in calculating farm specific custom farming rates and benchmarking machinery costs
L8: Version- 6.30.16
B28: DESCRIPTION OF "SHEETS" (see tabs at bottom of screen)
B29: Intro - Sheet that provides directions for using spreadsheet and author contact information.
B30: User info - Sheet that contains basic information about using the spreadsheet (i.e., explanation of inputs and outputs).
B31: Calculations - Sheet that contains formulas for automatic calculations to estimate farm-specific machinery costs.
B32: Blank form - Sheet that contains a worksheet that can be used to perform machinery cost calculations manually.
B35: FOR MORE INFORMATION:
B36: This spreadsheet was developed as a tool to automatically perform the calculations demonstrated and discussed in Custom Rates and the Total Cost to Own and Operate Farm Machinery in Kansas, which can be found at :
B38: Custom Rates and the Total Cost to Own and Operate Farm Machinery in Kansas
B39: *This publication provides information on how to use the tool, however some values in the tool have been updated since the paper was written.
B41: With Questions contact: | G41: Originally Developed by:
B43: Rich Llewelyn | G43: Aaron J. Beaton | L43: Kevin C. Dhuyvetter, Ph.D.
B44: Extension Assistant | G44: Former Graduate Research Assistant | L44: Former Agricultural Economist
B45: Kansas State University | G45: Agricultural Economics | L45: Kansas State University
B46: rvl@ksu.edu | G46: Kansas State University
B47: 785-532-1504 | L47: Terry L. Kastens, Ph.D.
L48: Professor Emeritus
L49: Kansas State University
B51: Copyright 2016 AgManager.info, K-State Department of Agricultural Economics

Sheet User info
C3: KSU-Machinery Cost ----- | F3: An Excel spreadsheet to assist producers in calculating farm specific custom farming rates and benchmarking machinery costs
C5: =Intro!L8 -> Version- 6.30.16
B7: INPUTS, COEFFICIENTS, and CALCULATED VALUES
B8: In the Calculations sheet, numerical values are color coded for ease of use according to the following:
C9: Blue font with light blue shading represents inputs required by the user
C10: Green font with light green shading represents model coefficients
C11: Black font with light yellow shading represent calculated values based on user input and model coefficients
B13: INPUT CELLS
C14: All blue cells are input cells, the number of harvested acres and actual crop machinery costs must be entered. The number of units of each operation (Column F) must be entered, if none of a particular operation was perfromed, enter "0". All operations that are performed must be enterered as an operation, otherwise the farms total crop machinery costs will be prorated over too few operations and units, causing incorrect calculations. If a particular operation is performed that is not listed in Column D, pick the operation that most closely resembles it. Additionally, all operations performed for others (on a custom farming basis) must be entered (in Column F) as well. Red diamond comment boxes are included on various inputs to help clarify what should be entered where.
B22: OUPUT CELLS
C23: All black cells are output cells (i.e., calculated values). This spreadsheet automatically recalculates every time an additional input is entered. Thus, it is important to wait until all data have been entered and reviewed before interpreting any of the calculated results (i.e., black numbers). Column M represents the farm-specific per unit cost to perform each of the operations for the farm being analyzed. The relative crop machinery cost coefficient, Part N, represents the aggregate crop machinery costs relative to other producers of the same size, performing similar operations and similar units of each operation. If the relative crop machinery costs coefficient is less than, equal to, or greater than one, then machinery costs are less than, equal to, or greater than what would be expected, respectively, indicating whether machinery operations are a strength or weakness of the business. Red diamond comment boxes are included on various cells to help clarify what the output means.

Sheet Calculations
B2: Estimates of Farm-Specific Per Unit Machinery Costs
B3: A. Scale Factor Coefficients
B4: Constant | F4: 1.241 | H4: Coefficient adjustment
B5: 1 / harvested acres | F5: 33.026 | I5: =AF17 -> 1.549588602
B7: B. Harvested Acres (required) | F7: 0 | I7: Year
I8: 2016
B9: C. Scale Factor (Scale factor = 1.241 + 33.026 x (1 / harvested acres)) | F9: =IF(F7>0,F4+F5*(1/F7),0) -> 0
B11: I. Step 3 -- Expected whole-farm crop machinery costs (Sum of Column H) | F11: =SUM(G20:G62) -> 0
B13: K. Step 5 -- Actual whole-farm crop machinery costs (required) | F13: 0 | W13: Estimates of Coefficient adjustment
B15: N. Relative crop machinery cost coefficient (K / I) | F15: =IF(F11>0,F13/F11,"-----") -> -----
W16: Total cost | X16: =SUMPRODUCT($W20:$W62,X20:X62) -> 75014.46596 | Y16: =SUMPRODUCT($W20:$W62,Y20:Y62) -> 90362.227 | Z16: 94769.18143 | AA16: 111336.0387 | AB16: 111563.767 | AC16: 104721.4138 | AD16: 111246.5672 | AE16: 113687.3617 | AF16: 116241.5614
B17: D. | C17: E. | E17: F. | F17: G. | G17: H. | H17: J. | I17: L. | J17: M. | L17: E. | V17: Coefficient adjustment (relative to 2001) | W17: % of 2001 | X17: =X16/$X16 -> 1 | Y17: =Y16/$X16 -> 1.204597351 | Z17: 1.263345412 | AA17: 1.484194245 | AB17: 1.487230037 | AC17: 1.396016255 | AD17: 1.483001522 | AE17: 1.515539173 | AF17: 1.549588602
C18: Adjusted | F18: Step 1 | G18: Step 2 | H18: Step 4 | I18: Step 6 | J18: Step 7 | L18: Estimated | W18: Mean Units | X18: KAS Custom rates
B19: Operations (required units) | C19: Coefficients | E19: Units | F19: (C × E) | G19: (F × G) | H19: (H / I) | I19: (J × K) | J19: (L / F) | L19: Coefficients | V19: Operation | X19: 2001 | Y19: 2006 | Z19: 2007 | AA19: 2008 | AB19: 2009 | AC19: 2010 | AD19: 2011 | AE19: 2012 | AF19: 2013
B20: Field cultivate without fertilizer (acres) | C20: =L20*I$5 -> 8.600216741 | E20: 0 | F20: =C20*$F$9 -> 0 | G20: =F20*E20 -> 0 | H20: =IF($F$11>0,G20/$F$11,0) -> 0 | I20: =H20*$F$13 -> 0 | J20: =IF(E20>0,I20/E20,"n/a") -> n/a | L20: 5.55 | V20: =B20 -> Field cultivate without fertilizer (acres) | W20: 920.2 | X20: 5.92 | Y20: 7.37 | Z20: 7.25 | AA20: 8.95 | AB20: 8.84 | AC20: 8.29 | AD20: 9.13 | AE20: 9.37 | AF20: 9.48
B21: Field cultivate with fertilizer (acres) | C21: 9.669432876 | E21: 0 | F21: =C21*$F$9 -> 0 | G21: =F21*E21 -> 0 | H21: =IF($F$11>0,G21/$F$11,0) -> 0 | I21: =H21*$F$13 -> 0 | J21: =IF(E21>0,I21/E21,"n/a") -> n/a | L21: 6.24 | V21: =B21 -> Field cultivate with fertilizer (acres) | W21: 88.6 | X21: =X20*X$63 -> 6.71328 | Y21: 8.35758 | Z21: 8.2215 | AA21: 10.1493 | AB21: 10.02456 | AC21: 9.40086 | AD21: 10.35342 | AE21: 10.62558 | AF21: 10.75032
B22: Sweep/undercut without fertilizer (acres) | C22: 8.352282565 | E22: 0 | F22: =C22*$F$9 -> 0 | G22: =F22*E22 -> 0 | H22: =IF($F$11>0,G22/$F$11,0) -> 0 | I22: =H22*$F$13 -> 0 | J22: =IF(E22>0,I22/E22,"n/a") -> n/a | L22: 5.39 | V22: Sweep/undercut without fertilizer (acres) | W22: 338.5 | X22: 5.38 | Y22: 6.43 | Z22: 6.66 | AA22: 7.73 | AB22: 7.42 | AC22: 7.05 | AD22: 7.76 | AE22: 7.88 | AF22: 7.93
B23: Sweep/undercut with fertilizer (acres) | C23: 9.390506928 | E23: 0 | F23: =C23*$F$9 -> 0 | G23: =F23*E23 -> 0 | H23: =IF($F$11>0,G23/$F$11,0) -> 0 | I23: =H23*$F$13 -> 0 | J23: =IF(E23>0,I23/E23,"n/a") -> n/a | L23: 6.06 | V23: Sweep/undercut with fertilizer (acres) | W23: 68.9 | X23: =X22*X$63 -> 6.10092 | Y23: 7.29162 | Z23: 7.55244 | AA23: 8.76582 | AB23: 8.41428 | AC23: 7.9947 | AD23: 8.79984 | AE23: 8.93592 | AF23: 8.99262
B24: Disk (acres) | C24: 9.808895851 | E24: 0 | F24: 0 | G24: 0 | H24: 0 | I24: 0 | J24: =IF(E24>0,I24/E24,"n/a") -> n/a | L24: 6.33 | V24: Disk (acres) | W24: 675.2 | X24: 6.48 | Y24: 7.79 | Z24: 7.93 | AA24: 9.02 | AB24: 9.06 | AC24: 8.68 | AD24: 9.5 | AE24: 9.75 | AF24: 9.88
B25: Chisel less than 12 inches deep (acres) | C25: 12.21075818 | E25: 0 | F25: 0 | G25: 0 | H25: 0 | I25: 0 | J25: n/a | L25: 7.88 | V25: Chisel less than 12 inches deep (acres) | W25: 155.3 | X25: 7.79 | Y25: 9.1 | Z25: 9.75 | AA25: 11.19 | AB25: 10.06 | AC25: 10.18 | AD25: 11.24 | AE25: 11.47 | AF25: 11.58
B26: Chisel greater than 12 inches deep (acres) | C26: 14.59712463 | E26: 0 | F26: 0 | G26: 0 | H26: 0 | I26: 0 | J26: n/a | L26: 9.42 | V26: Chisel greater than 12 inches deep (acres) | W26: 54 | X26: 9.54 | Y26: 11.88 | Z26: 11.46 | AA26: 15.81 | AB26: 13.7 | AC26: 13.26 | AD26: 15.13 | AE26: 15.44 | AF26: 15.55
B27: Disk-chisel/disk deep-chisel (acres) | C27: 14.36468634 | E27: 0 | F27: 0 | G27: 0 | H27: 0 | I27: 0 | J27: n/a | L27: 9.27 | V27: Disk-chisel/disk deep-chisel (acres) | W27: 109.5 | X27: =X26 -> 9.54 | Y27: 11.88 | Z27: 11.46 | AA27: 15.81 | AB27: 13.7 | AC27: 13.26 | AD27: 15.13 | AE27: 15.44 | AF27: 15.55
B28: Moldboard plow (acres) | C28: 13.88431387 | E28: 0 | F28: 0 | G28: 0 | H28: 0 | I28: 0 | J28: n/a | L28: 8.96 | V28: Moldboard plow (acres) | W28: 38.8 | X28: 8.98 | Y28: 11.04 | Z28: 10.64 | AA28: 15.41 | AB28: 14 | AC28: 12.73 | AD28: 14.4 | AE28: 14.57 | AF28: 14.6
B29: Row crop cultivate (acres) | C29: 9.917367053 | E29: 0 | F29: 0 | G29: 0 | H29: 0 | I29: 0 | J29: n/a | L29: 6.4 | V29: Row crop cultivate (acres) | W29: 72 | X29: 6.25 | Y29: 7.09 | Z29: 6.32 | AA29: 8.46 | AB29: 7.24 | AC29: 7.76 | AD29: 8.2 | AE29: 8.41 | AF29: 8.53
B30: Drill/air-seed no-till without fertilizer (acres) | C30: 15.54237368 | E30: 0 | F30: 0 | G30: 0 | H30: 0 | I30: 0 | J30: n/a | L30: 10.03 | V30: Drill/air-seed no-till without fertilizer (acres) | W30: 99.2 | X30: 9.89 | Y30: 11.77 | Z30: 12.1 | AA30: 13.73 | AB30: 13.31 | AC30: 13.71 | AD30: 14.46 | AE30: 15 | AF30: 15.31
B31: Drill/air-seed no-till with fertilizer (acres) | C31: 17.47935943 | E31: 0 | F31: =C31*$F$9 -> 0 | G31: =F31*E31 -> 0 | H31: =IF($F$11>0,G31/$F$11,0) -> 0 | I31: =H31*$F$13 -> 0 | J31: n/a | L31: 11.28 | V31: Drill/air-seed no-till with fertilizer (acres) | W31: 92.9 | X31: =X30*X$63 -> 11.21526 | Y31: 13.34718 | Z31: 13.7214 | AA31: 15.56982 | AB31: 15.09354 | AC31: 15.54714 | AD31: 16.39764 | AE31: 17.01 | AF31: 17.36154
B32: Drill/air-seed conventional till without fertilizer (acres) | C32: 9.11158098 | E32: 0 | F32: 0 | G32: 0 | H32: 0 | I32: 0 | J32: n/a | L32: 5.88 | V32: Drill/air-seed conventional till without fertilizer (acres) | W32: 279.3 | X32: 6.49 | Y32: 8.52 | Z32: 9.54 | AA32: 11.09 | AB32: 11.14 | AC32: 10.43 | AD32: 11.64 | AE32: 12.08 | AF32: 12.31
B33: Drill/air-seed conventional till with fertilizer (acres) | C33: 10.24278066 | E33: 0 | F33: =C33*$F$9 -> 0 | G33: =F33*E33 -> 0 | H33: =IF($F$11>0,G33/$F$11,0) -> 0 | I33: =H33*$F$13 -> 0 | J33: n/a | L33: 6.61 | V33: Drill/air-seed conventional till with fertilizer (acres) | W33: 142.4 | X33: =X32*X$63 -> 7.35966 | Y33: 9.66168 | Z33: 10.81836 | AA33: 12.57606 | AB33: 12.63276 | AC33: 11.82762 | AD33: 13.19976 | AE33: 13.69872 | AF33: 13.95954
B34: Plant no-till without fertilizer (acres) | C34: 15.17047241 | E34: 0 | F34: 0 | G34: 0 | H34: 0 | I34: 0 | J34: n/a | L34: 9.79 | V34: Plant no-till without fertilizer (acres) | W34: 107.8 | X34: =(9.56+10+10.5)/3 -> 10.02 | Y34: =(11.26+11.57+12)/3 -> 11.61 | Z34: =(12.04+12.09+12.34)/3 -> 12.15666667 | AA34: =(13.49+13.57+14.07)/3 -> 13.71 | AB34: =(13.63+13.7+13.68)/3 -> 13.67 | AC34: =(13.6+13.69+14.19)/3 -> 13.82666667 | AD34: =(14.38+14.44+14.85)/3 -> 14.55666667 | AE34: =(14.99+15.02+15.46)/3 -> 15.15666667 | AF34: =(15.35+15.36+15.82)/3 -> 15.51
B35: Plant no-till with fertilizer (acres) | C35: 17.04547462 | E35: 0 | F35: =C35*$F$9 -> 0 | G35: =F35*E35 -> 0 | H35: =IF($F$11>0,G35/$F$11,0) -> 0 | I35: =H35*$F$13 -> 0 | J35: n/a | L35: 11 | V35: Plant no-till with fertilizer (acres) | W35: 160.8 | X35: =X34*X$63 -> 11.36268 | Y35: 13.16574 | Z35: 13.78566 | AA35: 15.54714 | AB35: 15.50178 | AC35: 15.67944 | AD35: 16.50726 | AE35: 17.18766 | AF35: 17.58834
B36: Plant conventional till without fertilizer (acres) | C36: 12.56716356 | E36: 0 | F36: 0 | G36: 0 | H36: 0 | I36: 0 | J36: n/a | L36: 8.11 | V36: Plant conventional till without fertilizer (acres) | W36: 203.1 | X36: =(7.72+8.19+8.17)/3 -> 8.026666667 | Y36: =(9.65+10.3+10.33)/3 -> 10.09333333 | Z36: =(10.65+10.91+10.94)/3 -> 10.83333333 | AA36: =(12.3+12.51+12.87)/3 -> 12.56 | AB36: =(12.61+12.52+12.58)/3 -> 12.57 | AC36: =(11.8+12.25+12.45)/3 -> 12.16666667 | AD36: =(12.94+13.29+13.58)/3 -> 13.27 | AE36: =(13.45+13.82+14.15)/3 -> 13.80666667 | AF36: =(13.73+14.12+14.47)/3 -> 14.10666667
B37: Plant conventional till with fertilizer (acres) | C37: 14.11675216 | E37: 0 | F37: =C37*$F$9 -> 0 | G37: =F37*E37 -> 0 | H37: =IF($F$11>0,G37/$F$11,0) -> 0 | I37: =H37*$F$13 -> 0 | J37: n/a | L37: 9.11 | V37: Plant conventional till with fertilizer (acres) | W37: 84.1 | X37: =X36*X$63 -> 9.10224 | Y37: 11.44584 | Z37: 12.285 | AA37: 14.24304 | AB37: 14.25438 | AC37: 13.797 | AD37: 15.04818 | AE37: 15.65676 | AF37: 15.99696
B38: Spray chemical (acres) | C38: 5.625006625 | E38: 0 | F38: 0 | G38: 0 | H38: 0 | I38: 0 | J38: n/a | L38: 3.63 | V38: Spray chemical (acres) | W38: 1083.8 | X38: =(3.72+3.77)/2 -> 3.745 | Y38: =(4.4+4.51)/2 -> 4.455 | Z38: =(4.5+4.49)/2 -> 4.495 | AA38: =(5.01+5.07)/2 -> 5.04 | AB38: =(4.98+4.95)/2 -> 4.965 | AC38: =(4.9+4.97)/2 -> 4.935 | AD38: =(5.24+5.3)/2 -> 5.27 | AE38: =(5.38+5.44)/2 -> 5.41 | AF38: =(5.45+5.52)/2 -> 5.485
B39: Spray fertilizer (acres) | C39: 5.779965485 | E39: 0 | F39: 0 | G39: 0 | H39: 0 | I39: 0 | J39: n/a | L39: 3.73 | V39: Spray fertilizer (acres) | W39: 78.2 | X39: =X38 -> 3.745 | Y39: 4.455 | Z39: 4.495 | AA39: 5.04 | AB39: 4.965 | AC39: 4.935 | AD39: 5.27 | AE39: 5.41 | AF39: 5.485
B40: Spray chemical and fertilizer (acres) | C40: 5.795461371 | E40: 0 | F40: 0 | G40: 0 | H40: 0 | I40: 0 | J40: n/a | L40: 3.74 | V40: Spray chemical and fertilizer (acres) | W40: 287.3 | X40: =X38 -> 3.745 | Y40: 4.455 | Z40: 4.495 | AA40: 5.04 | AB40: 4.965 | AC40: 4.935 | AD40: 5.27 | AE40: 5.41 | AF40: 5.485
B41: Anhydrous ammonia application (acres) | C41: 8.522737311 | E41: 0 | F41: 0 | G41: 0 | H41: 0 | I41: 0 | J41: n/a | L41: 5.5 | V41: Anhydrous ammonia application (acres) | W41: 206.4 | X41: 5.61 | Y41: 6.75 | Z41: 8.46 | AA41: 10.2 | AB41: 10.55 | AC41: 9.19 | AD41: 10.32 | AE41: 10.68 | AF41: 10.87
B42: Broadcast dry fertilizer (acres) | C42: 5.284097133 | E42: 0 | F42: 0 | G42: 0 | H42: 0 | I42: 0 | J42: n/a | L42: 3.41 | V42: Broadcast dry fertilizer (acres) | W42: 288.7 | X42: 3.53 | Y42: 4.15 | Z42: 4.2 | AA42: 4.96 | AB42: 4.68 | AC42: 4.75 | AD42: 5.1 | AE42: 5.26 | AF42: 5.34
B43: Inject liquid fertilizer (acres) | C43: 5.439055993 | E43: 0 | F43: 0 | G43: 0 | H43: 0 | I43: 0 | J43: n/a | L43: 3.51 | V43: Inject liquid fertilizer (acres) | W43: 62.3 | X43: 3.57 | Y43: 4.42 | Z43: 4.37 | AA43: 4.98 | AB43: 4.82 | AC43: 4.84 | AD43: 5.21 | AE43: 5.35 | AF43: 5.42
B44: Harvest wheat (acres) | C44: 21.13638853 | E44: 0 | F44: 0 | G44: 0 | H44: 0 | I44: 0 | J44: n/a | L44: =IF(W48>=0,13.64,(13.64+3.47)) -> 13.64 | V44: Harvest wheat (acres) | W44: 462.8 | X44: 13.77 | Y44: 15.78 | Z44: 16.85 | AA44: 21.65 | AB44: 20.86 | AC44: 18.25 | AD44: 20.47 | AE44: 20.69 | AF44: 20.74
B45: Wheat yield above 20 bu/ac (bushels) | C45: 0.2014465183 | E45: 0 | F45: 0 | G45: 0 | H45: 0 | I45: 0 | J45: n/a | L45: 0.13 | V45: Wheat yield above 20 bu/ac (bushels) | W45: =W44*(45-21) -> 11107.2 | X45: 0.131 | Y45: 0.149 | Z45: 0.16 | AA45: 0.211 | AB45: 0.2 | AC45: 0.176 | AD45: 0.197 | AE45: 0.2 | AF45: 0.201
B46: Harvest corn (acres) | C46: 31.11573913 | E46: 0 | F46: 0 | G46: 0 | H46: 0 | I46: 0 | J46: n/a | L46: =IF(W52>=0,20.08,(20.08+7.88)) -> 20.08 | V46: Harvest corn (acres) | W46: 180 | X46: 19.43 | Y46: 21.75 | Z46: 22.14 | AA46: 26.51 | AB46: 26.35 | AC46: 23.92 | AD46: 25.93 | AE46: 26.18 | AF46: 26.26
B47: Corn yield above 48 bu/ac (bushels) | C47: 0.1952481639 | E47: 0 | F47: 0 | G47: 0 | H47: 0 | I47: 0 | J47: n/a | L47: 0.126 | V47: Corn yield above 48 bu/ac (bushels) | W47: =W46*(125-74) -> 9180 | X47: 0.119 | Y47: 0.15 | Z47: 0.164 | AA47: 0.203 | AB47: 0.192 | AC47: 0.183 | AD47: 0.198 | AE47: 0.203 | AF47: 0.206
B48: Harvest grain sorghum (acres) | C48: 21.91118283 | E48: 0 | F48: 0 | G48: 0 | H48: 0 | I48: 0 | J48: n/a | L48: =IF(W54>=0,14.14,(14.14+4.77)) -> 14.14 | V48: Harvest grain sorghum (acres) | W48: 230.9 | X48: 14.58 | Y48: 16.64 | Z48: 17.45 | AA48: 22.99 | AB48: 22.37 | AC48: 19.21 | AD48: 21.5 | AE48: 21.68 | AF48: 21.7
B49: Grain sorghum yield above 35 bu/ac (bushels) | C49: 0.1983473411 | E49: 0 | F49: 0 | G49: 0 | H49: 0 | I49: 0 | J49: n/a | L49: 0.128 | V49: Grain sorghum yield above 35 bu/ac (bushels) | W49: =W48*(80-36) -> 10159.6 | X49: 0.129 | Y49: 0.148 | Z49: 0.159 | AA49: 0.216 | AB49: 0.204 | AC49: 0.178 | AD49: 0.201 | AE49: 0.204 | AF49: 0.205
B50: Harvest soybeans (acres) | C50: 29.42668755 | E50: 0 | F50: 0 | G50: 0 | H50: 0 | I50: 0 | J50: n/a | L50: =IF(W56>=0,18.99,(18.99+1.41)) -> 18.99 | V50: Harvest soybeans (acres) | W50: 234.3 | X50: 19.48 | Y50: 21.88 | Z50: 22.61 | AA50: 26.47 | AB50: 25.66 | AC50: 23.89 | AD50: 25.99 | AE50: 26.25 | AF50: 26.32
B51: Soybean yield above 24 bu/ac (bushels) | C51: 0.1967977525 | E51: 0 | F51: 0 | G51: 0 | H51: 0 | I51: 0 | J51: n/a | L51: 0.127 | V51: Soybean yield above 24 bu/ac (bushels) | W51: =W50*(35-27) -> 1874.4 | X51: 0.127 | Y51: 0.172 | Z51: 0.158 | AA51: 0.206 | AB51: 0.198 | AC51: 0.174 | AD51: 0.199 | AE51: 0.201 | AF51: 0.201
B52: Harvest sunflowers (acres) | C52: 27.87709895 | E52: 0 | F52: 0 | G52: 0 | H52: 0 | I52: 0 | J52: n/a | L52: 17.99 | V52: Harvest sunflowers (acres) | W52: 13.6 | X52: 17.93 | Y52: 19.55 | Z52: 20.88 | AA52: 26.28 | AB52: 26.26 | AC52: 23.54 | AD52: 25.36 | AE52: 25.85 | AF52: 26.08
B53: Swath (acres) | C53: 12.95456071 | E53: 0 | F53: 0 | G53: 0 | H53: 0 | I53: 0 | J53: n/a | L53: 8.36 | V53: Swath (acres) | W53: 238.1 | X53: 8.2 | Y53: 9.65 | Z53: 10.27 | AA53: 11.49 | AB53: 11.52 | AC53: 10.81 | AD53: 11.73 | AE53: 11.97 | AF53: 12.09
B54: Rake hay (acres) | C54: 4.540294604 | E54: 0 | F54: 0 | G54: 0 | H54: 0 | I54: 0 | J54: n/a | L54: 2.93 | V54: Rake hay (acres) | W54: 164.7 | X54: 2.88 | Y54: 3.4 | Z54: 3.54 | AA54: 4.21 | AB54: 3.82 | AC54: 3.71 | AD54: 4.11 | AE54: 4.16 | AF54: 4.18
B55: Round bales less than 1,500 lbs (bales) | C55: 11.40497211 | E55: 0 | F55: 0 | G55: 0 | H55: 0 | I55: 0 | J55: n/a | L55: 7.36 | V55: Round bales less than 1,500 lbs (bales) | W55: 166.7 | X55: 7.19 | Y55: 8.59 | Z55: 9.3 | AA55: 9.83 | AB55: 10.45 | AC55: 9.66 | AD55: 10.31 | AE55: 10.55 | AF55: 10.69
B56: Round bales greater than 1,500 lbs (bales) | C56: 12.38121293 | E56: 0 | F56: 0 | G56: 0 | H56: 0 | I56: 0 | J56: n/a | L56: 7.99 | V56: Round bales greater than 1,500 lbs (bales) | W56: 132.2 | X56: 7.64 | Y56: 8.85 | Z56: 9.11 | AA56: 11.52 | AB56: 10.56 | AC56: 9.89 | AD56: 10.91 | AE56: 11.06 | AF56: 11.1
B57: Large square bales (bales) | C57: 18.71903031 | E57: 0 | F57: 0 | G57: 0 | H57: 0 | I57: 0 | J57: n/a | L57: 12.08 | V57: Large square bales (bales) | W57: 55 | X57: 11.7 | Y57: 12.9 | Z57: 13.07 | AA57: 14.76 | AB57: 13.58 | AC57: 13.14 | AD57: 14.17 | AE57: 14.12 | AF57: 14.04
B58: Small square bales (bales) | C58: 0.8259307249 | E58: 0 | F58: 0 | G58: 0 | H58: 0 | I58: 0 | J58: n/a | L58: 0.533 | V58: =B58 -> Small square bales (bales) | W58: 432.8 | X58: 0.49 | Y58: 0.67 | Z58: 0.71 | AA58: 0.81 | AB58: 0.92 | AC58: 0.83 | AD58: 0.89 | AE58: 0.93 | AF58: 0.95
B59: Chop silage (no hauling or ensiling) tons | C59: 4.757237008 | E59: 0 | F59: 0 | G59: 0 | H59: 0 | I59: 0 | J59: n/a | L59: 3.07 | V59: Chop silage (no hauling or ensiling) tons | W59: 273.2 | X59: 3.09 | Y59: 4.03 | Z59: 4.17 | AA59: 5.61 | AB59: 4.68 | AC59: 4.68 | AD59: 5.25 | AE59: 5.36 | AF59: 5.41
B60: Rotary mow (acres) | C60: 12.13327875 | E60: 0 | F60: 0 | G60: 0 | H60: 0 | I60: 0 | J60: n/a | L60: 7.83 | V60: Rotary mow (acres) | W60: 39.9 | X60: 7.9 | Y60: 10.35 | Z60: 10.44 | AA60: 12.85 | AB60: 12 | AC60: 11.37 | AD60: 12.99 | AE60: 13.28 | AF60: 13.39
B61: Miles on farm pickups (miles) | C61: 0.5206617703 | E61: 0 | F61: 0 | G61: 0 | H61: 0 | I61: 0 | J61: n/a | L61: 0.336 | V61: Miles on farm pickups (miles) | W61: 16295.1 | X61: 0.345 | Y61: 0.445 | Z61: 0.485 | AA61: 0.505 | AB61: 0.585 | AC61: 0.55 | AD61: 0.5 | AE61: 0.51 | AF61: 0.555
B62: Miles on grain/hay trucks (miles) | C62: 2.789259484 | E62: 0 | F62: 0 | G62: 0 | H62: 0 | I62: 0 | J62: n/a | L62: 1.8 | V62: Miles on grain/hay trucks (miles) | W62: 3072.8 | X62: 2.07 | Y62: =Y61/X61*X62 -> 2.67 | Z62: 2.91 | AA62: 3.03 | AB62: 3.51 | AC62: 3.3 | AD62: 3 | AE62: 3.06 | AF62: =AF61/Z61*Z62 -> 3.33
W63: Fertilizer operation => | X63: 1.134 | Y63: 1.134 | Z63: 1.134 | AA63: 1.134 | AB63: 1.134 | AC63: 1.134 | AD63: 1.134 | AE63: 1.134 | AF63: 1.134
V65: Mileage rates from
V66: http://www.owcc.state.ok.us/PDF/Mileage%20Rate%20History%20Chart.pdf

Sheet Blank form
B2: Estimates of Farm-Specific Per Unit Machinery Costs -- Worksheet
B3: A. Scale Factor Coefficients
B4: Constant | F4: 1.241
B5: 1 / harvested acres | F5: 33.026
B7: B. Harvested Acres
B9: C. Scale Factor (Scale factor = 1.241 + 33.026 x (1 / harvested acres))
B11: I. Step 3 - Expected whole-farm crop machinery costs (Sum of Column H)
B13: K. Step 5 - Actual whole-farm crop machinery costs
B15: N. Relative crop machinery cost coefficient (K / I)
B17: D. | C17: E. | E17: F. | F17: G. | G17: H. | H17: J. | I17: L. | J17: M.
C18: Estimated | F18: Step 1 | G18: Step 2 | H18: Step 4 | I18: Step 6 | J18: Step 7
B19: Operations (required units) | C19: Coefficients | E19: Units* | F19: (C × E) | G19: (F × G) | H19: (H / I) | I19: (J × K) | J19: (L / F)
B20: Field cultivate without fertilizer (acres) | C20: =Calculations!C20 -> 8.600216741
B21: Field cultivate with fertilizer (acres) | C21: =Calculations!C21 -> 9.669432876
B22: Sweep/undercut without fertilizer (acres) | C22: =Calculations!C22 -> 8.352282565
B23: Sweep/undercut with fertilizer (acres) | C23: =Calculations!C23 -> 9.390506928
B24: Disk (acres) | C24: =Calculations!C24 -> 9.808895851
B25: Chisel less than 12 inches deep (acres) | C25: =Calculations!C25 -> 12.21075818
B26: Chisel greater than 12 inches deep (acres) | C26: =Calculations!C26 -> 14.59712463
B27: Disk-chisel/disk deep-chisel (acres) | C27: =Calculations!C27 -> 14.36468634
B28: Moldboard plow (acres) | C28: =Calculations!C28 -> 13.88431387
B29: Row crop cultivate (acres) | C29: =Calculations!C29 -> 9.917367053
B30: Drill/air-seed no-till without fertilizer (acres) | C30: =Calculations!C30 -> 15.54237368
B31: Drill/air-seed no-till with fertilizer (acres) | C31: =Calculations!C31 -> 17.47935943
B32: Drill/air-seed conventional till without fertilizer (acres) | C32: =Calculations!C32 -> 9.11158098
B33: Drill/air-seed conventional till with fertilizer (acres) | C33: =Calculations!C33 -> 10.24278066
B34: Plant no-till without fertilizer (acres) | C34: =Calculations!C34 -> 15.17047241
B35: Plant no-till with fertilizer (acres) | C35: =Calculations!C35 -> 17.04547462
B36: Plant conventional till without fertilizer (acres) | C36: =Calculations!C36 -> 12.56716356
B37: Plant conventional till with fertilizer (acres) | C37: =Calculations!C37 -> 14.11675216
B38: Spray chemical (acres) | C38: =Calculations!C38 -> 5.625006625
B39: Spray fertilizer (acres) | C39: =Calculations!C39 -> 5.779965485
B40: Spray chemical and fertilizer (acres) | C40: =Calculations!C40 -> 5.795461371
B41: Anhydrous ammonia application (acres) | C41: =Calculations!C41 -> 8.522737311
B42: Broadcast dry fertilizer (acres) | C42: =Calculations!C42 -> 5.284097133
B43: Inject liquid fertilizer (acres) | C43: =Calculations!C43 -> 5.439055993
B44: Harvest wheat (acres) | C44: =Calculations!C44 -> 21.13638853
B45: Wheat yield above 20 bu/ac (bushels) | C45: =Calculations!C45 -> 0.2014465183
B46: Harvest corn (acres) | C46: =Calculations!C46 -> 31.11573913
B47: Corn yield above 48 bu/ac (bushels) | C47: =Calculations!C47 -> 0.1952481639
B48: Harvest grain sorghum (acres) | C48: =Calculations!C48 -> 21.91118283
B49: Grain sorghum yield above 35 bu/ac (bushels) | C49: =Calculations!C49 -> 0.1983473411
B50: Harvest soybeans (acres) | C50: =Calculations!C50 -> 29.42668755
B51: Soybean yield above 24 bu/ac (bushels) | C51: =Calculations!C51 -> 0.1967977525
B52: Harvest sunflowers (acres) | C52: =Calculations!C52 -> 27.87709895
B53: Swath (acres) | C53: =Calculations!C53 -> 12.95456071
B54: Rake hay (acres) | C54: =Calculations!C54 -> 4.540294604
B55: Round bales less than 1,500 lbs (bales) | C55: =Calculations!C55 -> 11.40497211
B56: Round bales greater than 1,500 lbs (bales) | C56: =Calculations!C56 -> 12.38121293
B57: Large square bales (bales) | C57: =Calculations!C57 -> 18.71903031
B58: Small square bales (bales) | C58: =Calculations!C58 -> 0.8259307249
B59: Chop silage (no hauling or ensiling) tons | C59: =Calculations!C59 -> 4.757237008
B60: Rotary mow (acres) | C60: =Calculations!C60 -> 12.13327875
B61: Miles on farm pickups (miles) | C61: =Calculations!C61 -> 0.5206617703
B62: Miles on grain/hay trucks (miles) | C62: =Calculations!C62 -> 2.789259484
B64: * Units entered must match the "required units" listed in Column D. All operations that were performed (either for yourself or for others, with or without compensation) must be entered in this column, or the farm's "Actual whole farm machinery costs" in Part K will be prorated over too few operations and units, resulting in incorrection calcuations.
